fUSD/lending_fUSD_20260123
["ID","MTS","AMOUNT","RATE_DAILY","PERIOD"]
[403145242,1769201441435,-836.0,0.0001768,2]
[403145244,1769201441444,-1275.918,0.00017698,2]
[403145246,1769201441454,-179.716,0.00017698,2]
[403145248,1769201441463,-500.0,0.00017699,2]
[403145250,1769201441472,-255.80435828,0.00017699,2]
[403145252,1769201441486,-154.75207679,0.00017699,2]
[403145254,1769201441496,-500.0,0.00017699,2]
[403145256,1769201441506,-500.0,0.00017699,2]
[403145258,1769201441516,-150.0,0.00017699,2]
[403145260,1769201441526,-500.0,0.00017699,2]
[403145262,1769201441536,-190.0,0.00017699,2]
[403145265,1769201441547,-150.0,0.00017715,2]
[403145267,1769201441556,-150.65265465,0.00017715,2]
[403145269,1769201441565,-500.0,0.00017715,2]
[403145271,1769201441575,-150.0,0.00017715,2]
[403145273,1769201441584,-150.0,0.00017715,2]
[403145275,1769201441592,-500.0,0.00017715,2]
[403145276,1769201441601,-500.0,0.00017715,2]
[403145279,1769201441611,-500.0,0.00017715,2]
[403145280,1769201441620,-150.0,0.00017715,2]
[403145283,1769201441629,-500.0,0.00017715,2]
[403145285,1769201441639,-150.0,0.00017715,2]
[403145286,1769201441648,-150.0,0.00017715,2]
[403145289,1769201441657,-500.0,0.00017715,2]
[403145291,1769201441666,-151.07703537,0.00017715,2]
[403145293,1769201441676,-150.0,0.00017715,2]
[403145295,1769201441686,-168.0,0.00017722,2]
[403145297,1769201441695,-1751.30830591,0.0001773,2]
[403145299,1769201441704,-500.0,0.00017753,2]
[403145301,1769201441713,-500.0,0.00017753,2]
[403145303,1769201441722,-500.0,0.00017753,2]
[403145305,1769201441731,-150.0,0.00017753,2]
[403145307,1769201441740,-500.0,0.00017753,2]
[403145309,1769201441749,-500.0,0.0001777,2]
[403145311,1769201441758,-235.3073639,0.0001777,2]
[403145313,1769201441766,-500.0,0.0001777,2]
[403145315,1769201441775,-500.0,0.0001777,2]
[403145317,1769201441784,-500.0,0.0001777,2]
[403145319,1769201441794,-227.55062227,0.0001777,2]
[403145321,1769201441803,-500.0,0.0001777,2]
[403145323,1769201441812,-150.0,0.0001777,2]
[403145325,1769201441821,-150.0,0.0001777,2]
[403145327,1769201441830,-500.0,0.0001777,2]
[403145329,1769201441840,-150.0,0.0001777,2]
[403145331,1769201441851,-1325.21371231,0.00017789,2]
[403145333,1769201441860,-178.53575862,0.00017789,2]
[403145335,1769201441869,-1000.0,0.000178,2]
[403145337,1769201441878,-1325.21371226,0.00017801,2]
[403145339,1769201441887,-150.0,0.00017808,2]
[403145340,1769201441896,-150.0,0.00017808,2]
[403145343,1769201441906,-500.0,0.00017808,2]
[403145344,1769201441914,-150.0,0.00017808,2]
[403145347,1769201441924,-500.0,0.00017808,2]
[403145348,1769201441935,-1325.21371226,0.00017814,2]
[403145350,1769201441944,-500.0,0.00017825,2]
[403145352,1769201441953,-500.0,0.00017825,2]
[403145355,1769201441963,-303.53248348,0.00017825,2]
[403145356,1769201441972,-500.0,0.00017825,2]
[403145358,1769201441983,-322.45367867,0.00017825,2]
[403145361,1769201441992,-150.0,0.00017825,2]
[403145362,1769201442001,-157.15309479,0.00017825,2]
[403145364,1769201442011,-500.0,0.00017825,2]
[403145366,1769201442020,-1325.21371226,0.00017826,2]
[403145368,1769201442031,-1325.21371226,0.00017838,2]
[403145370,1769201442041,-1325.21371226,0.00017851,2]
[403145372,1769201442050,-150.0,0.00017863,2]
[403145374,1769201442059,-545.0,0.00017863,2]
[403145376,1769201442068,-210.93814025,0.00017863,2]
[403145378,1769201442077,-500.0,0.00017863,2]
[403145380,1769201442086,-1325.21371226,0.00017863,2]
[403145382,1769201442095,-1612.0,0.00017863,2]
[403145384,1769201442104,-1325.21371226,0.00017875,2]
[403145386,1769201442113,-500.0,0.00017879,2]
[403145388,1769201442123,-500.0,0.00017879,2]
[403145390,1769201442132,-500.0,0.00017879,2]
[403145392,1769201442142,-164.45892503,0.00017879,2]
[403145394,1769201442151,-500.0,0.00017879,2]
[403145396,1769201442160,-1325.21371226,0.00017888,2]
[403145398,1769201442169,-500.0,0.00017889,2]
[403145400,1769201442178,-500.0,0.00017889,2]
[403145402,1769201442187,-500.0,0.00017889,2]
[403145404,1769201442196,-500.0,0.00017889,2]
[403145405,1769201442205,-500.0,0.00017889,2]
[403145406,1769201442213,-500.0,0.00017889,2]
[403145407,1769201442222,-1405.24,0.00017889,2]
[403145408,1769201442231,-2730.63,0.00017889,2]
[403145409,1769201442240,-1000.0,0.000179,2]
[403145410,1769201442249,-16520.97623702,0.000179,3]
[403145411,1769201442258,-485.78693407,0.000179,2]
[403145412,1769201442267,-8667.40045111,0.000179,2]
[403145413,1769201442276,-5283.81108714,0.000179,2]
[403145414,1769201442285,-1361.45905748,0.000179,2]
[403145416,1769201442294,-805.50550802,0.000179,3]
[403145417,1769201442303,-178.53575862,0.000179,2]
[403145419,1769201442312,-540.06227295,0.000179,2]
[403145421,1769201442321,-190.17693126,0.000179,2]
[403145423,1769201442330,-1325.21371226,0.000179,2]
[403145425,1769201442339,-500.0,0.000179,2]
[403145427,1769201442348,-500.0,0.000179,2]
[403145429,1769201442356,-500.0,0.000179,2]
[403145431,1769201442365,-500.0,0.000179,2]
[403145433,1769201442374,-500.0,0.000179,2]
[403145435,1769201442383,-500.0,0.000179,2]
[403145437,1769201442393,-500.0,0.000179,2]
[403145439,1769201442402,-500.0,0.000179,2]
[403145441,1769201442411,-500.0,0.000179,2]
[403145443,1769201442420,-500.0,0.000179,2]
[403145445,1769201442429,-500.0,0.000179,2]
[403145447,1769201442438,-500.0,0.000179,2]
[403145449,1769201442447,-500.0,0.000179,2]
[403145451,1769201442456,-500.0,0.000179,2]
[403145453,1769201442465,-500.0,0.000179,2]
[403145455,1769201442478,-500.0,0.000179,2]
[403145457,1769201442487,-500.0,0.000179,2]
[403145459,1769201442496,-500.0,0.000179,2]
[403145460,1769201442505,-500.0,0.000179,2]
[403145462,1769201442516,-500.0,0.000179,2]
[403145464,1769201442525,-500.0,0.000179,2]
[403145466,1769201442534,-500.0,0.000179,2]
[403145468,1769201442543,-500.0,0.000179,2]
[403145470,1769201442553,-500.0,0.000179,2]
[403145472,1769201442562,-500.0,0.000179,2]
[403145474,1769201442571,-500.0,0.000179,2]
[403145476,1769201442580,-500.0,0.000179,2]
[403145478,1769201442590,-500.0,0.000179,2]
[403145480,1769201442599,-500.0,0.000179,2]
[403145482,1769201442608,-500.0,0.000179,2]
[403145484,1769201442617,-3383.0,0.000179,2]
[403145486,1769201442627,-200.0,0.00017918,2]
[403145489,1769201442636,-229.21715423,0.00017918,2]
[403145490,1769201442647,-233.97306392,0.00017934,2]
[403145493,1769201442657,-500.0,0.00017934,2]
[403145495,1769201442666,-500.0,0.00017934,2]
[403145497,1769201442675,-281.84582328,0.00017934,2]
[403145498,1769201442683,-400.0,0.0001797,2]
[403145501,1769201442692,-700.0,0.0001797,2]
[403145503,1769201442702,-700.0,0.0001797,2]
[403145505,1769201442711,-502.67274929,0.0001797,2]
[403145507,1769201442720,-802.43614103,0.0001797,2]
[403145509,1769201442729,-150.0,0.00017973,2]
[403145510,1769201442737,-150.0,0.00017973,2]
[403145513,1769201442747,-500.0,0.00017989,2]
[403145515,1769201442755,-500.0,0.00017989,2]
[403145517,1769201442764,-151.0,0.00017997,2]
[403145519,1769201442773,-151.0,0.00017997,2]
[403145521,1769201442782,-150.0,0.00017999,2]
[403145523,1769201442791,-300.0,0.00017999,2]
[403145525,1769201442800,-300.0,0.00017999,2]
[403145526,1769201442809,-155.0,0.00017999,2]
[403145529,1769201442818,-300.0,0.00017999,2]
[403145530,1769201442827,-5089796.59141372,0.00018,2]
[403145535,1769201442864,-564.11572434,0.00018,2]
[403145539,1769201442890,-13177.90426045,0.00018,2]
[403145541,1769201442901,-577827.81905171,0.00018,2]
[403145547,1769201442941,-4865.58111011,0.00018,2]
[403145549,1769201442952,-18872.80445432,0.00018,2]
[403145690,1769201444267,-8590.34732013,0.00018,2]
[403145699,1769201444338,-1512.95425249,0.00018,2]
[403145707,1769201444410,-609.58481144,0.00018,2]
[403145713,1769201444455,-18655.78417946,0.00018,2]
[403145716,1769201444470,-17900.0,0.00018,2]
[403145721,1769201444511,-9122.49793244,0.00018,2]
[403145723,1769201444522,-513.07064025,0.00018,2]
[403145874,1769201446302,-243404.77782372,0.00018,2]
[403145875,1769201446340,-391.43999997,0.00018,2]
[403145876,1769201446351,-337.06700002,0.00018,2]
[403145877,1769201446382,-3484.99999995,0.00018,2]
[403145878,1769201446492,-1862.76140746,0.00018,2]
[403145963,1769201472303,182.47,0.00013677,2]
[403145987,1769202631560,-166.66,0.00015212,2]
[403145988,1769202631571,-166.66,0.00015532,2]
[403145989,1769202631581,-143.36734053,0.00015852,2]
[403145990,1769202631594,-23.29265947,0.00015852,2]
[403145991,1769202631604,-166.66,0.00016172,2]
[403145992,1769202631614,-910.80162303,0.0001632,2]
[403145993,1769202631626,-708.12837697,0.0001632,2]
[403145994,1769202631637,-78.28206631,0.0001632,2]
[403145995,1769202631700,-104.32593369,0.0001632,2]
[403145996,1769202631710,-166.66,0.00016493,2]
[403145997,1769202631720,-171.25,0.00016501,2]
[403145998,1769202631730,-612.97,0.00016517,2]
[403145999,1769202631741,-200.0,0.00016546,2]
[403146000,1769202631751,-1200.0,0.00016552,2]
[403146001,1769202631761,-934.73499569,0.00016553,2]
[403146002,1769202631773,-8071.91636796,0.00016553,2]
[403146003,1769202631856,-657.85661962,0.00016553,2]
[403146004,1769202631870,-344.58,0.00016553,2]
[403146005,1769202631882,-1783.43233148,0.00016553,2]
[403146006,1769202631903,-4067.03448011,0.00016553,2]
[403146007,1769202631914,-3804.84,0.00016553,2]
[403146008,1769202631926,-2734.76506803,0.00016553,2]
[403146010,1769202631942,-549.89342446,0.00016553,2]
[403146012,1769202631955,-311.95784776,0.00016553,2]
[403146014,1769202631967,-1501.99056459,0.00016553,2]
[403146147,1769202637502,-1221.00880848,0.00016553,2]
[403146201,1769202639581,-974015.98949182,0.00016553,2]
[403146202,1769202639590,-1283.69493318,0.0001662,2]
[403146203,1769202639599,-1325.21371231,0.0001662,2]
[403146204,1769202639608,-178.53575862,0.0001662,2]
[403146205,1769202639617,-151.0,0.00016643,2]
[403146206,1769202639626,-1000.0,0.00016652,2]
[403146207,1769202639634,-501.02527941,0.00016652,2]
[403146208,1769202639643,-500.0,0.00016652,2]
[403146209,1769202639652,-500.0,0.00016652,2]
[403146210,1769202639660,-500.0,0.00016652,2]
[403146211,1769202639669,-500.0,0.00016652,2]
[403146212,1769202639678,-500.0,0.00016652,2]
[403146213,1769202639687,-500.0,0.00016652,2]
[403146214,1769202639695,-622.73174709,0.00016652,2]
[403146215,1769202639704,-404.0,0.00016652,2]
[403146216,1769202639714,-1000.0,0.0001672,2]
[403146217,1769202639722,-1283.69493314,0.00016762,2]
[403146218,1769202639731,-1325.21371226,0.00016762,2]
[403146219,1769202639740,-166.66,0.00016813,2]
[403146220,1769202639749,-4272.98621307,0.00016862,2]
[403146221,1769202639758,-501.10663704,0.000169,2]
[403146222,1769202639767,-501.10663702,0.000169,2]
[403146223,1769202639776,-501.10663702,0.000169,2]
[403146224,1769202639785,-1283.69493314,0.00016904,2]
[403146225,1769202639797,-1325.21371226,0.00016904,2]
[403146226,1769202639806,-3435.17,0.00016949,2]
[403146227,1769202639815,-164.16,0.00016966,2]
[403146228,1769202639824,-3435.17,0.00016984,2]
[403146229,1769202639835,-250.0,0.00017,2]
[403146230,1769202639845,-3435.17,0.0001702,2]
[403146232,1769202639854,-836.0,0.0001704,2]
[403146234,1769202639863,-1283.69493314,0.00017047,2]
[403146236,1769202639874,-1325.21371226,0.00017047,2]
[403146237,1769202639884,-3435.17,0.00017056,2]
[403146238,1769202639894,-3435.17,0.00017091,2]
[403146239,1769202639903,-322.6107,0.00017099,2]
[403146240,1769202639913,-359.76179104,0.00017099,2]
[403146241,1769202639923,-174.61919141,0.00017099,2]
[403146242,1769202639932,-500.0,0.00017099,2]
[403146243,1769202639942,-500.0,0.00017099,2]
[403146244,1769202639951,-500.0,0.00017099,2]
[403146245,1769202639961,-500.0,0.00017099,2]
[403146246,1769202639971,-500.0,0.00017099,2]
[403146247,1769202639981,-500.0,0.00017099,2]
[403146248,1769202639990,-500.0,0.00017099,2]
[403146249,1769202639999,-500.0,0.00017099,2]
[403146250,1769202640008,-500.0,0.00017099,2]
[403146251,1769202640018,-500.0,0.00017099,2]
[403146253,1769202640028,-500.0,0.00017099,2]
[403146254,1769202640037,-854.2589148,0.00017099,2]
[403146255,1769202640047,-250.0,0.00017099,2]
[403146256,1769202640058,-250.0,0.00017099,2]
[403146257,1769202640067,-250.0,0.00017099,2]
[403146258,1769202640076,-250.0,0.00017099,2]
[403146259,1769202640086,-2468.0,0.00017099,2]
[403146260,1769202640096,-250.0,0.00017099,2]
[403146261,1769202640106,-250.0,0.00017099,2]
[403146262,1769202640115,-250.0,0.00017099,2]
[403146263,1769202640125,-250.0,0.00017099,2]
[403146264,1769202640135,-250.0,0.00017099,2]
[403146265,1769202640144,-500.0,0.00017099,2]
[403146266,1769202640152,-500.0,0.00017099,2]
[403146267,1769202640161,-500.0,0.00017099,2]
[403146268,1769202640170,-500.0,0.00017099,2]
[403146269,1769202640178,-500.0,0.00017099,2]
[403146270,1769202640187,-500.0,0.00017099,2]
[403146271,1769202640196,-500.0,0.00017099,2]
[403146272,1769202640205,-500.0,0.00017099,2]
[403146273,1769202640214,-500.0,0.00017099,2]
[403146274,1769202640223,-500.0,0.00017099,2]
[403146275,1769202640232,-500.0,0.00017099,2]
[403146276,1769202640243,-578.20924308,0.00017099,2]
[403146277,1769202640252,-500.0,0.00017099,2]
[403146278,1769202640264,-500.0,0.00017099,2]
[403146279,1769202640274,-151.0,0.00017099,2]
[403146280,1769202640284,-500.0,0.00017099,2]
[403146281,1769202640293,-151.0,0.00017099,2]
[403146282,1769202640302,-500.0,0.00017099,2]
[403146283,1769202640311,-151.0,0.00017099,2]
[403146284,1769202640320,-500.0,0.00017099,2]
[403146285,1769202640330,-151.0,0.00017099,2]
[403146286,1769202640339,-500.0,0.00017099,2]
[403146287,1769202640348,-250.0,0.00017099,2]
[403146288,1769202640358,-151.0,0.00017099,2]
[403146289,1769202640368,-151.0,0.00017099,2]
[403146290,1769202640377,-250.0,0.00017099,2]
[403146291,1769202640386,-250.0,0.00017099,2]
[403146292,1769202640395,-151.0,0.00017099,2]
[403146293,1769202640405,-250.0,0.00017099,2]
[403146294,1769202640414,-151.0,0.00017099,2]
[403146295,1769202640423,-250.0,0.00017099,2]
[403146296,1769202640433,-151.0,0.00017099,2]
[403146297,1769202640442,-250.0,0.00017099,2]
[403146298,1769202640451,-151.0,0.00017099,2]
[403146299,1769202640461,-250.0,0.00017099,2]
[403146300,1769202640470,-151.0,0.00017099,2]
[403146301,1769202640479,-250.0,0.00017099,2]
[403146302,1769202640489,-250.0,0.00017099,2]
[403146303,1769202640498,-250.0,0.00017099,2]
[403146304,1769202640507,-250.0,0.00017099,2]
[403146305,1769202640516,-182.71509876,0.000171,2]
[403146306,1769202640525,-159.3,0.00017105,2]
[403146307,1769202640535,-3435.17,0.00017127,2]
[403146308,1769202640544,-3435.17,0.00017163,2]
[403146309,1769202640553,-1283.69493314,0.00017189,2]
[403146310,1769202640563,-1325.21371226,0.00017189,2]
[403146311,1769202640572,-3435.17,0.00017198,2]
[403146312,1769202640581,-3435.17,0.00017234,2]
[403146313,1769202640592,-3435.17,0.0001727,2]
[403146314,1769202640601,-3435.17,0.00017305,2]
[403146315,1769202640610,-1000.0,0.00017325,2]
[403146316,1769202640619,-1283.69493314,0.00017331,2]
[403146317,1769202640628,-1325.21371226,0.00017331,2]
[403146318,1769202640637,-3435.17,0.00017341,2]
[403146319,1769202640647,-612.97,0.00017343,2]
[403146320,1769202640656,-845.0,0.0001736,2]
[403146321,1769202640665,-3435.17,0.00017377,2]
[403146322,1769202640674,-3435.17,0.00017412,2]
[403146323,1769202640684,-161.4,0.00017427,2]
[403146324,1769202640693,-3435.17,0.00017448,2]
[403146325,1769202640703,-1283.69493314,0.00017473,2]
[403146326,1769202640713,-1325.21371226,0.00017473,2]
[403146327,1769202640722,-1009.0,0.00017478,2]
[403146328,1769202640731,-3435.17,0.00017484,2]
[403146329,1769202640740,-6518.91910562,0.000175,2]
[403146330,1769202640749,-3435.17,0.00017519,2]
[403146331,1769202640757,-1009.0,0.00017523,2]
[403146332,1769202640766,-3435.17,0.00017555,2]
[403146333,1769202640775,-158.35836296,0.00017565,2]
[403146334,1769202640785,-150.0,0.00017589,2]
[403146335,1769202640796,-150.0,0.00017589,2]
[403146336,1769202640806,-500.0,0.00017589,2]
[403146337,1769202640815,-500.0,0.00017589,2]
[403146338,1769202640825,-150.0,0.00017589,2]
[403146339,1769202640835,-150.65265465,0.00017589,2]
[403146340,1769202640844,-500.0,0.00017589,2]
[403146341,1769202640853,-150.0,0.00017589,2]
[403146342,1769202640863,-500.0,0.00017589,2]
[403146343,1769202640872,-150.0,0.00017589,2]
[403146344,1769202640882,-150.0,0.00017589,2]
[403146345,1769202640892,-150.0,0.00017589,2]
[403146346,1769202640900,-500.0,0.00017589,2]
[403146347,1769202640909,-500.0,0.00017589,2]
[403146348,1769202640918,-500.0,0.00017589,2]
[403146349,1769202640927,-500.0,0.00017589,2]
[403146350,1769202640935,-150.0,0.00017589,2]
[403146351,1769202640944,-150.0,0.00017589,2]
[403146352,1769202640953,-150.0,0.00017589,2]
[403146353,1769202640962,-500.0,0.00017589,2]
[403146354,1769202640971,-151.07703537,0.00017589,2]
[403146355,1769202640980,-150.0,0.00017589,2]
[403146356,1769202640989,-150.0,0.00017589,2]
[403146357,1769202640998,-255.87876924,0.00017589,2]
[403146358,1769202641006,-500.0,0.00017589,2]
[403146359,1769202641015,-500.0,0.00017589,2]
[403146360,1769202641024,-3435.17,0.00017591,2]
[403146361,1769202641033,-151.0,0.00017613,2]
[403146362,1769202641043,-1283.69493314,0.00017616,2]
[403146363,1769202641052,-1325.21371226,0.00017616,2]
[403146364,1769202641061,-3435.17,0.00017626,2]
[403146365,1769202641071,-150.0,0.00017644,2]
[403146366,1769202641079,-150.0,0.00017644,2]
[403146367,1769202641088,-500.0,0.00017644,2]
[403146368,1769202641097,-500.0,0.00017644,2]
[403146369,1769202641106,-150.0,0.00017644,2]
[403146370,1769202641114,-500.0,0.00017644,2]
[403146371,1769202641123,-500.0,0.00017644,2]
[403146372,1769202641133,-235.3073639,0.00017644,2]
[403146373,1769202641142,-500.0,0.00017644,2]
[403146374,1769202641151,-500.0,0.00017644,2]
[403146375,1769202641160,-500.0,0.00017644,2]
[403146376,1769202641169,-500.0,0.00017644,2]
[403146377,1769202641178,-150.0,0.00017644,2]
[403146378,1769202641187,-227.55062227,0.00017644,2]
[403146379,1769202641196,-150.0,0.00017644,2]
[403146380,1769202641205,-500.0,0.00017644,2]
[403146381,1769202641214,-150.0,0.00017644,2]
[403146382,1769202641223,-150.0,0.00017644,2]
[403146383,1769202641232,-500.0,0.00017644,2]
[403146384,1769202641241,-500.0,0.00017644,2]
[403146385,1769202641249,-373.07297731,0.00017647,2]
[403146386,1769202641259,-181.08010149,0.00017647,2]
[403146387,1769202641268,-885.86649465,0.00017647,2]
[403146388,1769202641277,-1000.0,0.00017685,2]
[403146389,1769202641287,-255.80435828,0.00017699,2]
[403146390,1769202641296,-154.75207679,0.00017699,2]
[403146391,1769202641305,-500.0,0.00017699,2]
[403146392,1769202641314,-500.0,0.00017699,2]
[403146393,1769202641323,-200.0,0.00017699,2]
[403146394,1769202641332,-500.0,0.00017699,2]
[403146395,1769202641341,-500.0,0.00017699,2]
[403146396,1769202641350,-500.0,0.00017699,2]
[403146397,1769202641359,-303.53248348,0.00017699,2]
[403146398,1769202641368,-500.0,0.00017699,2]
[403146399,1769202641377,-322.45367867,0.00017699,2]
[403146400,1769202641386,-150.0,0.00017699,2]
[403146401,1769202641395,-157.15309479,0.00017699,2]
[403146402,1769202641404,-500.0,0.00017699,2]
[403146403,1769202641413,-150.0,0.00017699,2]
[403146404,1769202641422,-500.0,0.00017699,2]
[403146405,1769202641431,-500.0,0.00017699,2]
[403146406,1769202641440,-1751.30830591,0.0001773,2]
[403146407,1769202641449,-1000.0,0.00017734,2]
[403146408,1769202641458,-1000.0,0.00017738,2]
[403146409,1769202641467,-500.0,0.00017753,2]
[403146410,1769202641475,-500.0,0.00017753,2]
[403146411,1769202641484,-500.0,0.00017753,2]
[403146412,1769202641493,-500.0,0.00017753,2]
[403146413,1769202641502,-500.0,0.00017753,2]
[403146414,1769202641511,-500.0,0.00017753,2]
[403146415,1769202641520,-164.45892503,0.00017753,2]
[403146416,1769202641530,-500.0,0.00017753,2]
[403146417,1769202641540,-150.0,0.00017753,2]
[403146418,1769202641549,-490.0,0.00017753,2]
[403146419,1769202641559,-500.0,0.00017753,2]
[403146420,1769202641568,-1283.69493314,0.00017758,2]
[403146421,1769202641577,-1325.21371226,0.00017758,2]
[403146422,1769202641586,-536.9169,0.00017789,2]
[403146423,1769202641595,-264.96816924,0.00017798,2]
[403146424,1769202641606,-358.5087,0.00017798,2]
[403146425,1769202641615,-1000.0,0.000178,2]
[403146426,1769202641623,-414.20333232,0.000178,2]
[403146427,1769202641632,-1000.0,0.000178,2]
[403146428,1769202641642,-150.0,0.00017808,2]
[403146429,1769202641651,-150.0,0.00017808,2]
[403146430,1769202641660,-500.0,0.00017808,2]
[403146431,1769202641668,-500.0,0.00017808,2]
[403146432,1769202641678,-500.0,0.00017808,2]
[403146433,1769202641687,-500.0,0.00017808,2]
[403146434,1769202641695,-500.0,0.00017808,2]
[403146435,1769202641704,-281.84582328,0.00017808,2]
[403146436,1769202641713,-150.0,0.00017808,2]
[403146437,1769202641722,-1000.0,0.00017811,2]
[403146438,1769202641731,-1000.0,0.00017848,2]
[403146439,1769202641740,-1000.0,0.00017848,2]
[403146440,1769202641749,-150.0,0.00017863,2]
[403146441,1769202641759,-500.0,0.00017863,2]
[403146442,1769202641768,-500.0,0.00017863,2]
[403146443,1769202641776,-500.0,0.00017863,2]
[403146444,1769202641786,-500.0,0.00017863,2]
[403146445,1769202641799,-500.0,0.00017863,2]
[403146446,1769202641810,-210.93814025,0.00017863,2]
[403146447,1769202641820,-1000.0,0.00017863,2]
[403146448,1769202641829,-171.25,0.00017876,2]
[403146449,1769202641840,-721.0,0.00017882,2]
[403146450,1769202641850,-1000.0,0.00017888,2]
[403146451,1769202641859,-164.16,0.000179,2]
[403146452,1769202641869,-25000.0,0.000179,3]
[403146453,1769202641883,-16520.97623702,0.000179,3]
[403146454,1769202641895,-485.78693407,0.000179,2]
[403146455,1769202641909,-1000.0,0.000179,2]
[403146456,1769202641921,-1283.69493314,0.000179,2]
[403146457,1769202641932,-2889.13348371,0.000179,2]
[403146458,1769202641943,-180.02075765,0.000179,2]
[403146459,1769202641955,-1325.21371226,0.000179,2]
[403146460,1769202641968,-268.50183602,0.000179,3]
[403146461,1769202641980,-178.53575862,0.000179,2]
[403146462,1769202641992,-453.81968584,0.000179,2]
[403146463,1769202642004,-3178.0,0.000179,2]
[403146464,1769202642017,-1000.0,0.0001791,2]
[403146465,1769202642030,-200.0,0.00017918,2]
[403146466,1769202642042,-500.0,0.00017918,2]
[403146467,1769202642055,-500.0,0.00017918,2]
[403146468,1769202642069,-229.21715423,0.00017918,2]
[403146469,1769202642080,-500.0,0.00017918,2]
[403146470,1769202642090,-500.0,0.00017918,2]
[403146471,1769202642101,-2000.0,0.00017918,2]
[403146472,1769202642113,-1000.0,0.00017931,2]
[403146473,1769202642125,-1009.0,0.00017941,2]
[403146474,1769202642136,-250.0,0.00017952,2]
[403146475,1769202642147,-502.67274929,0.0001797,2]
[403146476,1769202642159,-400.0,0.0001797,2]
[403146477,1769202642171,-700.0,0.0001797,2]
[403146478,1769202642182,-700.0,0.0001797,2]
[403146479,1769202642194,-802.43614103,0.0001797,2]
[403146480,1769202642205,-500.0,0.00017973,2]
[403146481,1769202642216,-500.0,0.00017973,2]
[403146482,1769202642228,-300.0,0.00017973,2]
[403146483,1769202642240,-150.0,0.00017973,2]
[403146484,1769202642253,-150.0,0.00017973,2]
[403146485,1769202642264,-150.0,0.00017973,2]
[403146486,1769202642275,-151.0,0.00017997,2]
[403146487,1769202642287,-150.0,0.00017999,2]
[403146488,1769202642298,-155.0,0.00017999,2]
[403146489,1769202642311,-300.0,0.00017999,2]
[403146490,1769202642325,-300.0,0.00017999,2]
[403146491,1769202642336,-300.0,0.00017999,2]
[403146492,1769202642349,-300.0,0.00017999,2]
[403146494,1769202642361,-3561.42930987,0.00018,2]
[403146495,1769202642371,-4876681.79545081,0.00018,2]
[403146497,1769202642386,-464.78825332,0.00018,2]
[403146498,1769202642399,-1660.52225698,0.00018,2]
[403146506,1769202642541,-300.0,0.00018,2]
[403146507,1769202642556,-847.34561743,0.00018,2]
[403146509,1769202642578,-954.55,0.00018,2]
[403146510,1769202642590,-1358.10438257,0.00018,2]
[403146512,1769202643299,-17.50981651,0.00018,2]
[403146517,1769202649566,-2630.64669746,0.00018,2]
[403146518,1769202650198,-4389.11989882,0.00018,2]
[403146519,1769202650210,-1445.02567937,0.00018,2]
[403146521,1769203560144,7638.24223218,8e-05,2]
[403146522,1769203560167,1193.60271814,8e-05,2]
[403146526,1769203694074,8806.40728186,0.00012957,2]
[403146527,1769203694106,1875.92271814,0.00012957,2]
[403146531,1769203753139,-407.01572319,0.00015433,2]